Cogmind - Beta 15 @@@ ROGUE MODE // 2025.06.01 @ 15:18:28 Player: Figgis Result: Destroyed by 98-X1T(R) with Subdweller Machine Gun Performance ------------- Evolutions (0) 0 Regions Visited (2) 400 Robots Destroyed (22) 110 Value Destroyed (521) 521 Prototype IDs (11) 220 Alien Tech Used (0) 0 Bonus (0) 0 TOTAL SCORE: 1251 Bonus ------- None Cogmind --------- Core Integrity 0/250 Matter 300/300 Energy 200/200 System Corruption 0% Temperature Cool (0) Movement Walking (120) Location -10/Subcaves Parts ------- > --- POWER (1) -------- Subdweller Power Source > --- PROPULSION (2) --- Aluminum Leg Aluminum Leg > --- UTILITY (2) ------ Small Storage Unit > --- WEAPON (2) ------- Subdweller Machine Gun Makeshift Sword > --- INVENTORY (8) ---- Subdweller Power Source Aluminum Leg High-capacity Storage Unit Scrap Shield Makeshift Hacking Suite Subdweller Laser Slug Cannon Peak State ------------ > --- POWER ------------ Light Nuclear Core > --- PROPULSION ------- Aluminum Leg Makeshift Leg > --- UTILITY ---------- Small Storage Unit > --- WEAPON ----------- Assault Rifle Mining Claw > --- INVENTORY -------- Subdweller Power Source Aluminum Leg Aluminum Leg Aluminum Leg High-capacity Storage Unit Makeshift Hacking Suite Light Assault Rifle [Rating: 12] Favorites ----------- Power Light Nuclear Core Engine Subdweller Power Source Power Core Light Nuclear Core Propulsion Aluminum Leg Leg Aluminum Leg Utility Small Storage Unit Device Structural Scanner Storage Small Storage Unit Weapon Assault Rifle Ballistic Gun Assault Rifle Slashing Weapon Makeshift Sword Build | -11 -10 -10 ------- Run | Yrd Mat Sub Slots Evolved . | . . . Power . | . . . Propulsion . | . . . Utility . | . . . Weapon . | . . . Parts Attached 19 | 3 9 7 Power 3 | . 2 1 Engine 2 | . 1 1 Core 1 | . 1 . Reactor . | . . . Propulsion 7 | 2 2 3 Treads . | . . . Leg 7 | 2 2 3 Wheel . | . . . Hover . | . . . Flight . | . . . Utility 3 | . 3 . Device 1 | . 1 . Storage 2 | . 2 . Processor . | . . . Hackware . | . . . Protection . | . . . Artifact . | . . . Weapon 6 | 1 2 3 Energy Gun . | . . . Energy Cannon . | . . . Ballistic Gun 4 | 1 2 1 Ballistic Cannon . | . . . Launcher . | . . . Special Weapon . | . . . Impact Weapon . | . . . Slashing Weapon 2 | . . 2 Piercing Weapon . | . . . Special Melee Weapon . | . . . Unidentified Prototypes . | . . . Parts Lost 4 | . . 4 Power 1 | . . 1 Propulsion 1 | . . 1 Utility 1 | . . 1 Weapon 1 | . . 1 Highest Loss Streak 3 | . . 3 To Critical Strikes . | . . . Average Backups 6 | 2 6 7 Power 1 | . 1 1 Propulsion 1 | . 1 2 Utility 1 | . . 2 Weapon 2 | 1 2 2 Tool/Special . | . . . Unused Backups 8 | . . 8 Power 2 | . . 2 Propulsion 1 | . . 1 Utility 2 | . . 2 Weapon 3 | . . 3 Tool/Special . | . . . Average Slot Usage (%) 87 | . 88 87 Engine 6 | . 6 6 Core 6 | . 6 6 Leg 27 | . 28 27 Device 4 | . 5 4 Storage 13 | . 13 14 Ballistic Gun 21 | . 27 16 Slashing Weapon 5 | . . 11 Peak Build Rating 12 | 3 9 12 Average Rating 8 | 1 7 10 On Entrance 4 | . 3 9 Naked Turns . | . . . Heaviest Build 16 | 1 15 16 Greatest Support 20 | 3 20 20 Greatest Overweight (x) 4 | . . 4 Average Overweight (x) . | . . . Largest Inventory Capacity 20 | 5 20 8 Average Capacity 7 | 5 7 8 Most Carried 8 | 5 8 8 Average Carried 7 | 3 6 7 Final Capacity 8 | 5 8 8 Final Carried 8 | 5 8 8 Class Distribution -------------------- 100% | Mutant Dominant Class ---------------- Mutant | -10/Materials Mutant | -10/Subcaves Resources | -11 -10 -10 ----------- Run | Yrd Mat Sub Matter Collected 632 | 230 324 78 Remotely . | . . . Salvage Created 617 | . 534 83 Parts 37 | . 33 4 Haulers Intercepted . | . . . Recyclers Shooed . | . . . Parts Field Recycled . | . . . Retrieved Matter . | . . . Parts Self-Destructed 3 | . . 3 Prevented . | . . . Kills | -11 -10 -10 ------- Run | Yrd Mat Sub Combat Hostiles Destroyed 20 | . 18 2 Melee 2 | . . 2 Guns 18 | . 18 . Classes Destroyed 4 | . 3 1 Watcher 2 | . 2 . Swarmer 9 | . 9 . Grunt 9 | . 9 . Subdweller 2 | . . 2 Best Kill Streak 4 | . 4 1 Combat Bots Only 3 | . 3 1 Max Kills in Single Turn 2 | . 2 1 Gunslinging 1 | . 1 . Exploded . | . . . Melee 1 | . . 1 Uniques/NPCs Destroyed . | . . . Combat | -11 -10 -10 -------- Run | Yrd Mat Sub Hostile Shots Fired 85 | . 54 31 Missed 16 | . 9 7 Hits 69 | . 45 24 Projectile 69 | . 45 24 Damage Taken 1042 | . 446 596 Core 270 | . 147 123 Absorbed by Shields . | . . . Core Remaining (%) 100 | 100 . . Volleys Fired 40 | . 37 3 Largest 2 | . 2 1 Hottest 40 | . 40 30 Shots Fired 77 | . 74 3 Gun 77 | . 74 3 Cannon . | . . . Launcher . | . . . Special . | . . . Kinetic 77 | . 74 3 Thermal . | . . . Explosive . | . . . Electromagnetic . | . . . Robot Hit Streak 7 | . 7 5 Robot Miss Streak 4 | . 4 . Penetration Max . | . . . Secondary Targets 3 | . 3 . Max Gunslinging Chain 1 | . 1 . Shots Hit Robots 68 | . 49 19 Core Hits 28 | . 26 2 Critical Kills . | . . . Critical Parts Destroyed 1 | . 1 . Critical Strikes 1 | . 1 . Destroy 1 | . 1 . Melee Attacks 25 | . . 25 Impact . | . . . Slashing 25 | . . 25 Piercing . | . . . Sneak Attacks . | . . . Combat Hostiles . | . . . Follow-up Attacks . | . . . Damage Inflicted 1067 | . 622 445 Guns 646 | . 622 24 Cannons . | . . . Explosions . | . . . Melee 421 | . . 421 Ramming . | . . . Kinetic 646 | . 622 24 Thermal . | . . . Explosive . | . . . Electromagnetic . | . . . Impact . | . . . Slashing 421 | . . 421 Piercing . | . . . Highest Corruption . | . . . Average Corruption . | . . . Corruption Purged . | . . . Corruption Blocked . | . . . Overload Shots . | . . . Overflow Damage . | . . . Projectiles . | . . . Explosions . | . . . Melee . | . . . Knockbacks . | . . . Impact . | . . . Kinetic . | . . . Secondary . | . . . Self-Inflicted Damage . | . . . Shots . | . . . Rammed . | . . . Targets Rammed . | . . . Kicked . | . . . Crushed . | . . . Highest Temperature 2 | . 2 . Average Temperature 1 | . 1 . Received Heat Transfer 222 | . 126 96 Siege Activations . | . . . Martial Activations . | . . . Shielding Activations . | . . . Robots Disrupted . | . . . Combat Hostiles . | . . . Robots Corrupted . | . . . Combat Hostiles . | . . . Parts Fried . | . . . Impact Corruptions . | . . . Robots Melted . | . . . Combat Hostiles . | . . . Parts Melted 1 | . . 1 Heat Transferred . | . . . Parts Sabotaged . | . . . Parts Stolen . | . . . Parts Stripped . | . . . Power Chain Reactions . | . . . Alert | -11 -10 -10 ------- Run | Yrd Mat Sub Maximum Alert Level . | . . . Low Security (%) 100 | 100 100 . Level 1 . | . . . Level 2 . | . . . Level 3 . | . . . Level 4 . | . . . Level 5 . | . . . High Security . | . . . Max Security . | . . . Peak Influence 171 | . 171 . Initial . | . . . Average 84 | . 86 . Influence Increases 455 | . 455 . Destroy 0b10 Robot/C 360 | . 360 . Destroy 0b10 Robot/NC 10 | . 10 . Destroy Leader 74 | . 74 . Successful Hack 11 | . 11 . Influence Decreases 455 | . 352 103 Entered New Map 51 | . . 51 Time Decay 404 | . 352 52 Squads Dispatched 3 | . 3 . Investigation 1 | . 1 . Extermination . | . . . Reinforcement 2 | . 2 . Assault . | . . . Garrison . | . . . Intercept . | . . . Searches Triggered . | . . . Construction Impeded . | . . . Haulers Reinforced . | . . . Active Scanning Responses . | . . . Cargo Convoy Interrupts . | . . . Stealth | -11 -10 -10 --------- Run | Yrd Mat Sub Distress Signals 1 | . 1 . Communications Jammed . | . . . Distress Signals . | . . . Times Spotted 25 | . 21 4 Peak Tracking Total 3 | . 3 2 Tactical Retreats . | . . . Traps | -11 -10 -10 ------- Run | Yrd Mat Sub Traps Triggered 3 | . 1 2 Indirectly . | . . . Trap Hack Attempts . | . . . Triggered . | . . . Disarmed . | . . . Reprogrammed . | . . . Reused . | . . . Traps Extracted . | . . . Installed . | . . . Triggered . | . . . Machines | -11 -10 -10 ---------- Run | Yrd Mat Sub Machines Disabled . | . . . Max in Single Turn . | . . . Machines Repaired . | . . . Machines Dismantled . | . . . Machines Sabotaged . | . . . Overloaded Fab Kills . | . . . Hacking | -11 -10 -10 --------- Run | Yrd Mat Sub Machines Accessed 4 | . 3 1 Terminals 3 | . 3 . Fabricators . | . . . Repair Stations . | . . . Recycling Units . | . . . Scanalyzers . | . . . Garrison Access . | . . . Total Hacks 18 | . 9 9 Successful 15 | . 6 9 Failed 3 | . 3 . Catastrophic . | . . . Database Lockouts . | . . . Manual 3 | . 3 . Terminals 9 | . 9 . Fabricators . | . . . Repair Stations . | . . . Recycling Units . | . . . Scanalyzers . | . . . Garrison Access . | . . . Terminal Hacks 15 | . 6 9 Record 8 | . . 8 Robot Analysis 3 | . 3 . Alert Level 1 | . 1 . Locate Traps 1 | . 1 . Registered Components 1 | . 1 . Proto ID Catalog 1 | . . 1 Fabricator Hacks . | . . . Repair Station Hacks . | . . . Recycling Unit Hacks . | . . . Scanalyzer . | . . . Garrison Access Hacks . | . . . Unauthorized Hacks . | . . . Terminals . | . . . Fabricators . | . . . Repair Stations . | . . . Recycling Units . | . . . Scanalyzers . | . . . Garrison Access . | . . . Data Cores Recovered . | . . . Used . | . . . Hacking Detections 1 | . 1 . Full Trace Events . | . . . Feedback Events . | . . . Feedback Blocked . | . . . Robot Schematics Acquired . | . . . Robots Built . | . . . Authchips . | . . . Time . | . . . Total Robot Build Rating . | . . . Part Schematics Acquired . | . . . Parts Built . | . . . Authchips . | . . . Time . | . . . Total Part Build Rating . | . . . Parts Repaired . | . . . Time . | . . . Parts Recycled . | . . . Recycled Matter . | . . . Retrieved Matter . | . . . Retrieved Components . | . . . Parts Scanalyzed . | . . . Part Schematics Acquired . | . . . Parts Damaged . | . . . Bothacking | -11 -10 -10 ------------ Run | Yrd Mat Sub Used RIF Installer . | . . . Robots Hacked . | . . . Non-combat . | . . . Combat . | . . . Robot Hacks Applied . | . . . Relay Couplers Released . | . . . Fabnet Peak Effective % . | . . . Robots Rewired . | . . . Allies Hacked . | . . . Hacks Repelled . | . . . Allies | -11 -10 -10 -------- Run | Yrd Mat Sub Total Allies . | . . . Largest Group . | . . . Highest-Rated Group . | . . . Highest-Rated Ally . | . . . Total Orders . | . . . Ally Attacks . | . . . Total Damage . | . . . Kills . | . . . Allies Corrupted . | . . . Allies Melted . | . . . Intel | -11 -10 -10 ------- Run | Yrd Mat Sub Active Infowar (turns) 560 | . 323 237 Structural 560 | . 323 237 Robot Analysis Total 3 | . 3 . Derelict Logs Recovered . | . . . Drone Launches . | . . . Drone Recoveries . | . . . Exploration | -11 -10 -10 ------------- Run | Yrd Mat Sub Turns Passed 1718 | 27 837 854 Spaces Moved 1109 | 33 467 609 Core 90 | 33 53 4 Treads . | . . . Legs 1019 | . 414 605 Wheels . | . . . Hover . | . . . Flight . | . . . Fastest Speed 50 | 50 50 120 Average Speed 114 | 50 112 120 Slowest Speed 250 | 50 120 250 Overloaded Moves . | . . . Propulsion Burnouts . | . . . Robots Hopped . | . . . Potential Cave-ins . | . . . Cave-ins Triggered . | . . . Exploration Rate (%) 42 | 3 89 35 Regions Visited 2 Branch Regions 1 Pre-discovered Areas . | . . . Known Exits Taken . | . . . Unknown Exits Taken 2 | 1 1 . Scrap Searched 8 | . . 8 Spaces Dug . | . . . Terrain Destroyed . | . . . Melee . | . . . Projectile . | . . . AOE . | . . . Terrain Rammed . | . . . Walls Destroyed . | . . . Machines Disabled . | . . . Actions | -11 -10 -10 --------- Run | Yrd Mat Sub Total 1431 | 41 706 684 Wait 209 | 1 183 25 Move 1107 | 32 466 609 Hop . | . . . Pick Up 16 | 5 6 5 Fast Attach 6 | 3 1 2 Attach 4 | . 3 1 Detach . | . . . Swap 13 | . 7 6 Drop 11 | . 3 8 Fire 40 | . 37 3 Melee 25 | . . 25 Ram . | . . . Kick . | . . . Crush . | . . . Escape Stasis . | . . . Rewire . | . . . Trap . | . . . Miscellaneous . | . . . Route ------- -11/Scrapyard -10/Materials (discovered 6 exits: [*Mat x3] / [*Min x2] / *Sub) -10/Subcaves History --------- Turn | Location | Event 6 | -11/Scrapyard | Discovered new exit (range 16) 28 | -11/Scrapyard | Entered Materials 212 | -10/Materials | Discovered new exit (range 5) 304 | -10/Materials | Build established: Mutant 395 | -10/Materials | Discovered new exit (range 11) 469 | -10/Materials | Core integrity fell below 50% 498 | -10/Materials | Discovered new exit (range 16) 663 | -10/Materials | Discovered new exit (range 4) 684 | -10/Materials | Discovered new exit (range 14) 775 | -10/Materials | Discovered new exit (range 7) 865 | -10/Materials | Entered Subcaves 1008 | -10/Subcaves | Shifting Twisted Machinery released Sub. Power Source 1018 | -10/Subcaves | Shifting Twisted Machinery released Mak. Hacking Suite 1119 | -10/Subcaves | Visited 4L-MR0's lab 1268 | -10/Subcaves | Lost 3 parts (1p1n1w) 1710 | -10/Subcaves | Core integrity fell below 20% 1719 | -10/Subcaves | Destroyed by 98-X1T(R) with Subdweller Machine Gun Last Messages --------------- 01318_ Searching scrap... 01318_ Found Sub. Beam Cannon. 01318_ Found Battle Cannon. 01318_ Found 32 Matter. 01323_ Searching scrap... 01323_ Found Flamer. 01323_ Found Piercing Trap. 01323_ Found 41 Matter. 01325_ Searching scrap... 01325_ Found Riot Gun. 01325_ Found Mak. Sword. 01325_ Found 48 Matter. 01327_ Dropped Mining Claw. 01328_ Subatomizers dissect the Sub. Optics. 01329_ Acquired 10 matter. 01339_ Subatomizers dissect the Sub. Optics. 01647_ F0-ZZS(R): "ECOKILL!" 01669_ F0-ZZS(R) destroyed. 01671_ Acquired 2 matter. 01685_ K1-2ES(O) collects matter. Map ----- +----------------------------------------------------+ | ?????????????### ##??????????????????????? | | ?????????????### ####????????????????????? | | ??????????????### #####????????????????? | | ??????????????### ## ##???????????????? | | ???????????????## #???????????????? | | ???????????????## #???????????????? | | ???????????????### ##???????????????? | | ???????????????#### #????????????????? | | ????????????????#### ]#????????????????? | | ?????????????????### ![= ##????????????????? | | ???????????????????# & ####?????????????????? | | ??????????????????## &##???????????????????? | | ??????????????????# ##??????????????????? | | ??????????????????### ####???????????????? | | ????????????????????## ##??????????????? | | ?????????????????????### ##?????????????? | | ??????????????????????## ##????????????? | | ??????????????????????# ## ## # ??????? | | ??????????????????????# % ?????? | | ??????????????????????# # ### ##????????? | | ??????????????????????# #???#?????????? | | ?????????????????????## # ##?????????????? | | ?????????????????????# # ##?????????????? | | ???????????????#????## # ##????????????? | | ???????????????# ####R # #????????? | | ???????????????# @ ???????? | | ???????????????# ???????? | | ??????????????## ### R ! ???????? | | ??????????????# #?? ## #???????? | | ??????????????# ##?? #?? #???????? | | ??????????????# ???? ## #????????????? | | ??????????????# ???? ##? #????????????? | | ??????????????### ???? #??? #????????????? | | ????????????????# ???? ??? ????????????? | | ???????????????? ???? ????##???????????? | | ???????????????## ????? ????????????????? | | ????????????????#####????? ????????????????? | | ?????????????????????????? ??????????????????? | | ?????????????????????????????????????????????? | | ?????????????????????????????????????????????? | | ?????????????????????????????????????????????? | | ?????????????????????????????????????????????? | | ?????????????????????????????????????????????? | | ?????????????????????????????????????????????? | | ?????????????????????????????????????????????? | | ?????????????????????????????????????????????? | | ?????????????????????????????????????????????? | | ?????????????????????????????????????????????? | | ?????????????????????????????????????????????? | | ?????????????????????????????????????????????? | +----------------------------------------------------+ Best States ------------- Heat Dissipation 25 Energy Generation 15 Energy Capacity 200 Matter Stores 300 Matter Capacity 300 Sight Range 16 Terrain Scan Density 10 Evasion (%) 55 Item Schematics ----------------- None Robot Schematics ------------------ None Fabricated ------------ Nothing Repaired ---------- Nothing Alien Tech Used ----------------- None Achievements -------------- None Challenges ------------ None Game ------ Seed TacticalMappingLauncher Manual? 0 Play Time 00:11:50 Cumulative 170.5 hours Start 2025.06.01 @ 15:08:29 End 2025.06.01 @ 15:18:28 Sessions 1 Manual Loads 0 Difficulty Rogue Special Mode None Game No. 264 Rogue 261 Adventurer 3 Explorer 0 Win Type - Total 1 Types 1/0/0/0/0/0/0/0/0/0 Lore% 58 Gallery% 57 Achievement% 45 Wizard Run 0 Options --------- Layout 0 ASCII 0 Keyboard 0 Movement Mouse Keybinds 0 Fullscreen 2 Font 18/SmallcapsGlow Map View 76x50 Zoom Use 0% Tactical HUD 1 Map Filters NONE Filters NONE Steam 1 RUN: 332bb360-8af8-44d6-805b-d8f08b1ca5e5